bitfinex/quotes_SOLUSD_20220113
["timestamp","ask_amount","ask_price","bid_price","bid_amount"]
[1642061411921,75.6642927,151.99,151.98,25.6162]
[1642061412121,75.6642927,151.99,151.98,19.6162]
[1642061412823,75.6642927,151.99,151.98,19.8762]
[1642061413724,75.6642927,151.99,151.98,19.6162]
[1642061414955,75.6642927,151.99,151.98,19.8762]
[1642061415153,75.6642927,151.99,151.98,19.6162]
[1642061416253,81.72869264,151.99,151.98,19.6162]
[1642061416552,75.6642927,151.99,151.98,19.6162]
[1642061417557,75.6642927,151.99,151.98,19.8762]
[1642061418855,75.6642927,151.99,151.98,20.97944876]
[1642061420261,75.6642927,151.99,151.98,20.71944876]
[1642061421462,75.6642927,151.99,151.98,20.97944876]
[1642061422566,75.6642927,151.99,151.98,19.8762]
[1642061422964,75.6642927,151.99,151.98,19.6162]
[1642061424866,75.6642927,151.99,151.98,19.8762]
[1642061425069,75.6642927,151.99,151.98,25.8762]
[1642061425302,75.6642927,151.99,151.98,26.97944876]
[1642061426967,75.6642927,151.99,151.98,50.03052671]
[1642061427967,75.6642927,151.99,151.98,26.97944876]
[1642061428166,75.6642927,151.99,151.98,25.6162]
[1642061433473,75.6642927,151.99,151.98,25.8762]
[1642061433674,47.08111174,151.99,151.98,26.97944876]
[1642061435074,47.08111174,151.99,151.98,25.8762]
[1642061435276,47.08111174,151.99,151.98,25.6162]
[1642061435477,47.08111174,151.99,151.98,25.3662]
[1642061435680,47.08111174,151.99,151.98,19.3662]
[1642061436282,47.08111174,151.99,151.95,1.8288287]
[1642061436283,70.98139511,151.99,151.95,11.3288287]
[1642061436477,53.14551168,151.99,151.95,9.5]
[1642061436876,50.11331171,151.99,151.95,9.5]
[1642061437477,50.11331171,151.99,151.95,9.76]
[1642061438278,50.11331171,151.99,151.95,19.6281]
[1642061439181,47.08111174,151.99,151.95,19.6281]
[1642061439382,47.08111174,151.99,151.95,19.8781]
[1642061440511,47.08111174,151.99,151.95,25.8781]
[1642061440909,47.08111174,151.99,151.95,19.6181]
[1642061441912,47.08111174,151.99,151.96,2.632]
[1642061442111,47.08111174,151.99,151.96,0.25]
[1642061442311,6.06439994,151.98,151.96,0.25]
[1642061442513,6.06439994,151.98,151.95,19.3681]
[1642061442714,6.06439994,151.98,151.95,9.5]
[1642061443811,6.06439994,151.98,151.95,9.75]
[1642061444111,47.08111174,151.99,151.95,9.75]
[1642061447413,47.08111174,151.99,151.95,10.01]
[1642061447611,47.08111174,151.99,151.95,16.01]
[1642061448213,47.08111174,151.99,151.95,25.878]
[1642061448416,47.08111174,151.99,151.95,26.98543096]
[1642061448814,47.08111174,151.99,151.95,25.878]
[1642061449016,47.08111174,151.99,151.95,25.618]
[1642061449815,47.08111174,151.99,151.95,19.618]
[1642061450516,47.08111174,151.99,151.95,25.618]
[1642061451416,47.08111174,151.99,151.95,25.878]
[1642061451815,47.08111174,151.99,151.95,25.618]
[1642061452818,47.08111174,151.99,151.95,19.618]
[1642061453420,47.08111174,151.99,151.95,25.618]
[1642061453918,47.08111174,151.99,151.95,15.75]
[1642061455530,47.08111174,151.99,151.95,18.382]
[1642061455935,47.08111174,151.99,151.95,12.642]
[1642061456332,47.08111174,151.99,151.95,22.5102]
[1642061456533,47.08111174,151.99,151.95,28.5102]
[1642061457232,47.08111174,151.99,151.95,28.2502]
[1642061457733,47.08111174,151.99,151.95,25.6182]
[1642061458635,47.08111174,151.99,151.95,25.8782]
[1642061459062,47.08111174,151.99,151.95,19.8782]
[1642061460163,47.08111174,151.99,151.95,25.8782]
[1642061460664,47.08111174,151.99,151.95,19.8782]
[1642061460866,47.08111174,151.99,151.95,25.8782]
[1642061461264,47.08111174,151.99,151.95,19.8782]
[1642061461464,47.08111174,151.99,151.95,25.8782]
[1642061462366,47.08111174,151.99,151.95,19.8782]
[1642061462566,47.08111174,151.99,151.95,25.8782]
[1642061462766,47.08111174,151.99,151.95,19.8782]
[1642061463366,47.08111174,151.99,151.95,26.98563096]
[1642061464669,47.08111174,151.99,151.95,29.61763096]
[1642061467078,47.08111174,151.99,151.95,31.44645966]
[1642061467683,47.08111174,151.99,151.95,97.56645966]
[1642061469079,47.08111174,151.99,151.95,31.44645966]
[1642061469679,47.08111174,151.99,151.95,31.18645966]
[1642061470079,47.08111174,151.99,151.95,30.0790287]
[1642061470480,47.08111174,151.99,151.95,28.2502]
[1642061471082,47.08111174,151.99,151.95,28.5102]
[1642061471283,47.08111174,151.99,151.95,22.5102]
[1642061471882,47.08111174,151.99,151.95,19.8782]
[1642061472079,47.08111174,151.99,151.95,25.8782]
[1642061472881,47.08111174,151.99,151.95,25.6182]
[1642061474384,47.08111174,151.99,151.95,25.8782]
[1642061474583,47.08111174,151.99,151.95,26.98376014]
[1642061474786,47.08111174,151.99,151.95,20.98376014]
[1642061475585,47.08111174,151.99,151.95,26.98376014]
[1642061475785,47.08111174,151.99,151.95,25.8782]
[1642061477387,47.08111174,151.99,151.95,26.98376014]
[1642061477816,47.08111174,151.99,151.95,19.8782]
[1642061478419,47.08111174,151.99,151.95,19.6182]
[1642061479918,47.08111174,151.99,151.95,19.8782]
[1642061482719,47.08111174,151.99,151.95,19.6182]
[1642061484023,47.08111174,151.99,151.95,19.8782]
[1642061486326,47.08111174,151.99,151.95,19.6182]
[1642061487528,47.08111174,151.99,151.95,19.8782]
[1642061488828,47.08111174,151.99,151.95,20.98376014]
[1642061489627,47.08111174,151.99,151.95,19.6182]
[1642061489828,47.08111174,151.99,151.95,9.75]
[1642061490031,47.08111174,151.99,151.95,0.25]
[1642061490433,47.08111174,151.99,151.94,0.32]
[1642061490630,24.19200862,151.98,151.94,0.32]
[1642061490832,24.19200862,151.98,151.94,0.07]
[1642061492331,47.08111174,151.99,151.94,0.07]
[1642061495232,47.08111174,151.99,151.94,9.9388]
[1642061495631,47.08111174,151.99,151.94,10.1888]
[1642061496032,47.08111174,151.99,151.94,21.05436014]
[1642061496235,47.08111174,151.99,151.94,20.79436014]
[1642061496433,47.08111174,151.99,151.94,21.05436014]
[1642061497333,47.08111174,151.99,151.95,2.632]
[1642061497533,47.08111174,151.99,151.95,13.0097]
[1642061497734,47.08111174,151.99,151.95,12.7497]
[1642061498135,47.08111174,151.99,151.95,10.1177]
[1642061499137,47.08111174,151.99,151.95,10.3777]
[1642061501237,47.08111174,151.99,151.95,10.1177]
[1642061501638,47.08111174,151.99,151.95,10.3777]
[1642061504786,47.08111174,151.99,151.95,0.25]
[1642061504990,47.08111174,151.99,151.94,14.2108287]
[1642061505186,47.08111174,151.99,151.94,9.75]
[1642061506188,47.08111174,151.99,151.95,9.8682]
[1642061506591,47.08111174,151.99,151.95,10.1182]
[1642061507593,47.08111174,151.99,151.95,13.0102]
[1642061508895,47.08111174,151.99,151.95,12.7502]
[1642061509596,47.08111174,151.99,151.95,13.0102]
[1642061510100,47.08111174,151.99,151.95,14.11576014]
[1642061512600,47.08111174,151.99,151.96,9.5]
[1642061512797,47.08111174,151.99,151.97,12.5687]
[1642061513001,47.08111174,151.99,151.97,12.8187]
[1642061514197,3.03219997,151.98,151.97,12.8187]
[1642061514397,6.06439994,151.98,151.97,0.32]
[1642061514596,6.06439994,151.98,151.97,0.07]
[1642061517100,47.08111174,151.99,151.97,0.07]
[1642061518701,53.14551168,151.99,151.97,0.07]
[1642061519303,47.08111174,151.99,151.97,0.07]
[1642061521504,47.08111174,151.99,151.97,9.9371]
[1642061521907,47.08111174,151.99,151.97,10.1871]
[1642061522834,47.08111174,151.99,151.97,11.29266014]
[1642061523033,47.08111174,151.99,151.98,2.63]
[1642061523339,47.08111174,151.99,151.98,12.4961]
[1642061523536,47.08111174,151.99,151.98,18.7461]
[1642061523934,47.08111174,151.99,151.98,12.7461]
[1642061524437,47.08111174,151.99,151.98,10.1161]
[1642061526837,47.08111174,151.99,151.98,0.25]
[1642061527039,47.08111174,151.99,151.97,4.05556014]
[1642061527238,47.08111174,151.99,151.97,10.05556014]
[1642061527439,47.08111174,151.99,151.97,10.31556014]
[1642061528138,47.08111174,151.99,151.97,10.05556014]
[1642061528340,47.08111174,151.99,151.97,19.92256014]
[1642061529438,47.08111174,151.99,151.97,17.29256014]
[1642061529839,47.08111174,151.99,151.97,10.187]
[1642061530038,47.08111174,151.99,151.97,0.07]
[1642061530842,3.03219997,151.98,151.97,0.07]
[1642061531941,50.11331171,151.99,151.97,0.07]
[1642061532342,47.08111174,151.99,151.97,0.07]
[1642061533442,6.06439994,151.98,151.97,0.07]
[1642061533942,47.08111174,151.99,151.97,0.07]
[1642061535742,47.08111174,151.99,151.97,9.57]
[1642061535944,47.08111174,151.99,151.97,0.07]
[1642061536443,47.08111174,151.99,151.97,9.57]
[1642061536644,47.08111174,151.99,151.97,19.3669]
[1642061536842,47.08111174,151.99,151.97,19.8769]
[1642061537243,47.08111174,151.99,151.97,19.6169]
[1642061537444,47.08111174,151.99,151.97,19.8769]
[1642061538045,47.08111174,151.99,151.97,19.6169]
[1642061538844,50.11331171,151.99,151.97,19.6169]
[1642061539245,47.08111174,151.99,151.97,19.6169]
[1642061539446,47.08111174,151.99,151.97,10.1169]
[1642061539845,47.08111174,151.99,151.97,10.1869]
[1642061540045,47.08111174,151.99,151.97,10.1169]
[1642061541048,47.08111174,151.99,151.97,10.3769]
[1642061542248,47.08111174,151.99,151.97,10.1169]
[1642061543855,47.08111174,151.99,151.97,0.25]
[1642061544052,47.08111174,151.99,151.95,5.0388287]
[1642061545053,47.08111174,151.99,151.95,6.13616446]
[1642061545255,47.08111174,151.99,151.96,9.8676]
[1642061545455,47.08111174,151.99,151.97,2.632]
[1642061545653,47.08111174,151.99,151.97,2.702]
[1642061545858,47.08111174,151.99,151.97,2.952]
[1642061547157,53.14551168,151.99,151.97,2.952]
[1642061547456,53.14551168,151.99,151.97,2.702]
[1642061547657,53.14551168,151.99,151.97,2.632]
[1642061548958,53.14551168,151.99,151.97,0.25]
[1642061549159,53.14551168,151.99,151.95,9.9383]
[1642061549567,53.14551168,151.99,151.95,10.1883]
[1642061552161,53.14551168,151.99,151.95,0.32]
[1642061552562,53.14551168,151.99,151.95,0.07]
[1642061555364,53.14551168,151.99,151.95,9.9383]
[1642061555563,53.14551168,151.99,151.95,10.4483]
[1642061556269,53.14551168,151.99,151.95,10.1883]
[1642061558668,53.14551168,151.99,151.95,0.32]
[1642061558871,53.14551168,151.99,151.95,0.07]
[1642061560271,53.14551168,151.99,151.95,11.03563576]
[1642061560572,53.14551168,151.99,151.95,11.28563576]
[1642061560771,53.14551168,151.99,151.96,2.632]
[1642061560971,47.08111174,151.99,151.96,24.19556398]
[1642061561172,47.08111174,151.99,151.97,1.09733576]
[1642061561376,47.08111174,151.99,151.98,2.63]
[1642061561571,47.08111174,151.99,151.98,12.4963]
[1642061561971,47.08111174,151.99,151.98,12.7463]
[1642061562372,47.08111174,151.99,151.97,0.07]
[1642061563174,47.08111174,151.99,151.96,9.8676]
[1642061563373,47.08111174,151.99,151.96,12.4996]
[1642061563575,47.08111174,151.99,151.96,12.7496]
[1642061564896,6.06439994,151.98,151.96,2.882]
[1642061566699,47.08111174,151.99,151.96,2.882]
[1642061566997,47.08111174,151.99,151.96,0.25]
[1642061567397,47.08111174,151.99,151.95,12.8202]
[1642061574404,47.08111174,151.99,151.96,1.09733576]
[1642061574604,47.08111174,151.99,151.97,9.8671]
[1642061574804,47.08111174,151.99,151.97,9.9371]
[1642061575006,47.08111174,151.99,151.97,10.1871]
[1642061575404,47.08111174,151.99,151.97,10.1171]
[1642061576105,47.08111174,151.99,151.97,0.25]
[1642061576504,6.06439994,151.98,151.95,14.6486287]
[1642061576909,6.06439994,151.98,151.95,4.7808287]
[1642061577106,6.06439994,151.98,151.95,2.952]
[1642061578205,6.06439994,151.98,151.95,0.32]
[1642061578608,6.06439994,151.98,151.95,0.07]
[1642061579913,2.632,151.97,151.95,0.07]
[1642061581315,3.03219997,151.96,151.95,0.07]
[1642061584111,26.2123,151.98,151.95,0.07]
[1642061584311,23.5803,151.98,151.95,0.07]
[1642061585815,3.03219997,151.97,151.95,0.07]
[1642061586015,23.5803,151.98,151.95,0.07]
[1642061588220,47.08111174,151.99,151.95,0.07]
[1642061588417,47.08111174,151.99,151.96,1.09733576]
[1642061588818,47.08111174,151.99,151.96,11.21523576]
[1642061589818,47.08111174,151.99,151.96,13.84723576]
[1642061590020,47.08111174,151.99,151.96,0.25]
[1642061590217,47.08111174,151.99,151.97,2.632]
[1642061590418,47.08111174,151.99,151.96,2.63]
[1642061590718,47.08111174,151.99,151.97,0.25]
[1642061590922,47.08111174,151.99,151.96,2.63]
[1642061591121,47.08111174,151.99,151.95,0.07]
[1642061591122,47.08111174,151.99,151.95,2.702]
[1642061591620,47.08111174,151.99,151.95,12.5707]
[1642061592020,47.08111174,151.99,151.95,12.8207]
[1642061592418,46.58111174,151.99,151.95,12.8207]
[1642061592921,46.58111174,151.99,151.95,12.5707]
[1642061593120,2.632,151.98,151.95,0.07]
[1642061593321,3.03219997,151.97,151.95,0.07]
[1642061593721,2.632,151.98,151.95,0.07]
[1642061597429,2.632,151.99,151.95,0.07]
[1642061600234,2.632,151.99,151.95,1.16733576]
[1642061600436,2.632,151.99,151.95,0.07]
[1642061603341,27.5736,152.0,151.95,0.07]
[1642061603544,27.8236,152.0,151.95,0.07]
[1642061610273,37.6947,152.0,151.95,0.07]
[1642061612676,27.8236,152.0,151.95,0.07]
[1642061618487,27.5736,152.0,151.95,0.07]
[1642061618690,2.632,152.0,151.95,0.07]
[1642061618891,2.632,152.0,151.95,9.57]
[1642061619091,2.632,152.0,151.96,1.09733576]
[1642061619292,1.88586414,152.03,151.97,0.07]
[1642061619689,1.88586414,152.03,151.97,9.57]
[1642061619891,1.88586414,152.03,151.98,9.8659]
[1642061620191,1.88586414,152.03,151.99,2.63]
[1642061620390,4.51586414,152.03,151.97,32.8831]
[1642061620592,4.51586414,152.03,151.95,9.5]
[1642061620792,4.76586414,152.03,151.93,2.63]
[1642061620991,24.9888,152.02,151.93,2.63]
[1642061621189,2.632,152.01,151.95,11.6976287]
[1642061621592,69.002,152.01,151.95,11.6976287]
[1642061621794,18.09921718,152.0,151.95,11.6976287]
[1642061622094,18.34921718,152.0,151.95,11.6976287]
[1642061622490,18.34921718,152.0,151.95,9.8688]
[1642061623391,18.34921718,152.0,151.94,9.8698]
[1642061623592,2.632,151.99,151.93,1.8288287]
[1642061624139,2.882,151.99,151.93,1.8288287]
[1642061624292,2.882,151.99,151.91,13.9608287]
[1642061624495,2.882,151.99,151.92,9.871]
[1642061624895,2.882,151.99,151.91,1.8288287]
[1642061625194,2.882,151.99,151.92,2.632]
[1642061625398,2.882,151.99,151.91,2.632]
[1642061626194,12.7535,151.99,151.91,12.5036]
[1642061629798,12.7535,151.99,151.91,2.632]
[1642061631898,12.5035,151.99,151.91,2.632]
[1642061632098,12.5035,151.99,151.91,2.882]
[1642061632497,12.5035,151.99,151.91,2.952]
[1642061633799,12.7535,151.99,151.91,2.952]
[1642061633999,12.7535,151.99,151.91,2.702]
[1642061634399,12.7535,151.99,151.91,2.632]
[1642061634599,12.7535,151.99,151.9,2.632]
[1642061634806,32.1644,151.98,151.89,2.632]
[1642061635001,9.8743,151.95,151.89,2.882]
[1642061636705,6.8743,151.95,151.89,2.882]
[1642061637504,22.6509,151.96,151.89,2.882]
[1642061637704,2.632,151.97,151.89,12.7549]
[1642061638006,22.8244,151.99,151.89,19.85223576]
[1642061638204,2.632,151.98,151.89,19.85223576]
[1642061638404,2.632,151.98,151.89,18.7549]
[1642061638604,2.632,151.98,151.89,12.7549]
[1642061638808,12.5042,151.98,151.89,12.7549]
[1642061639006,12.7542,151.98,151.89,18.7549]
[1642061639441,24.314,151.97,151.89,12.7549]
[1642061639644,2.632,151.96,151.89,12.7549]
[1642061640044,2.882,151.96,151.89,12.7549]
[1642061641044,0.25,151.96,151.89,12.7549]
[1642061641444,26.946,151.97,151.89,12.7549]
[1642061641644,24.314,151.97,151.89,12.7549]
[1642061641847,24.314,151.97,151.89,18.7549]
[1642061642944,24.314,151.97,151.89,28.2549]
[1642061643444,24.314,151.97,151.89,29.35223576]
[1642061644249,24.314,151.97,151.89,28.2549]
[1642061644849,24.314,151.97,151.89,22.2549]
[1642061646345,24.314,151.97,151.9,1.09733576]
[1642061646546,24.1493,151.99,151.93,9.8691]
[1642061646746,24.1493,151.99,151.91,12.202]
[1642061646946,24.1493,151.99,151.91,12.452]
[1642061647147,2.632,151.98,151.91,9.82]
[1642061647348,12.5041,151.98,151.91,9.57]
[1642061647550,12.7541,151.98,151.91,9.57]
[1642061648146,12.7541,151.98,151.91,0.07]
[1642061649447,23.1542,151.97,151.91,0.07]
[1642061649949,23.4042,151.97,151.91,0.07]
[1642061650949,23.1542,151.97,151.91,9.9416]
[1642061651149,74.30674972,152.0,151.92,2.632]
[1642061651548,74.30674972,152.0,151.92,2.882]
[1642061651750,74.30674972,152.0,151.92,8.882]
[1642061652354,84.17764972,152.0,151.93,9.8699]
[1642061652552,84.17764972,152.0,151.93,10.1199]
[1642061652755,84.17764972,152.0,151.93,0.25]
[1642061652954,84.17764972,152.0,151.92,2.632]
[1642061653154,84.17764972,152.0,151.92,2.882]
[1642061653755,84.42764972,152.0,151.92,12.753]
[1642061654154,84.42764972,152.0,151.92,22.253]
[1642061654554,74.55674972,152.0,151.92,22.253]
[1642061654755,74.55674972,152.0,151.92,28.253]
[1642061654955,74.30674972,152.0,151.92,28.253]
[1642061655153,74.55674972,152.0,151.92,22.253]
[1642061658988,74.55674972,152.0,151.92,28.253]
[1642061659988,2.882,152.0,151.92,28.253]
[1642061660188,2.882,152.0,151.92,28.513]
[1642061660393,0.25,152.0,151.92,28.253]
[1642061660588,2.882,152.01,151.92,29.61033576]
[1642061660788,2.882,152.01,151.92,29.35033576]
[1642061660989,30.78222211,152.0,151.92,28.253]
[1642061661488,24.0956,151.99,151.92,22.253]
[1642061664991,24.3456,151.99,151.92,12.753]
[1642061665193,26.9776,151.99,151.92,10.121]
[1642061666294,26.7276,151.99,151.92,10.121]
[1642061666695,26.7276,151.99,151.92,35.2751528]
[1642061667096,24.0956,151.99,151.93,2.632]
[1642061667497,24.0956,151.99,151.93,12.7524]
[1642061670304,24.0956,151.99,151.93,10.1204]
[1642061671303,24.0956,151.99,151.93,9.8704]
[1642061671504,24.3456,151.99,151.93,15.8704]
[1642061671703,82.5778,152.01,151.93,10.1204]
[1642061671905,79.9458,152.01,151.94,2.702]
[1642061672103,82.8278,152.01,151.94,9.9397]
[1642061672304,82.8278,152.01,151.94,0.07]
[1642061673209,22.5486,152.0,151.94,0.07]
[1642061673610,22.7986,152.0,151.94,0.07]
[1642061675313,32.6696,152.0,151.94,0.07]
[1642061675517,2.632,151.99,151.94,0.07]
[1642061675919,2.882,151.99,151.94,0.07]
[1642061677151,12.7539,151.99,151.94,0.07]
[1642061679855,12.5039,151.99,151.94,0.07]
[1642061680057,9.8719,151.99,151.94,0.07]
[1642061680958,9.8719,151.99,151.92,2.882]
[1642061681159,9.8719,151.99,151.92,12.823]
[1642061681558,22.5486,152.0,151.92,12.823]
[1642061681757,22.5486,152.0,151.92,37.4201]
[1642061682956,22.7986,152.0,151.92,37.4201]
[1642061683155,32.6695,152.0,151.92,37.4201]
[1642061684059,32.4195,152.0,151.92,37.4201]
[1642061684858,32.4195,152.0,151.92,27.5491]
[1642061685058,32.4195,152.0,151.92,27.2991]
[1642061685460,32.6695,152.0,151.92,27.2991]
[1642061686159,12.5038,151.99,151.92,27.2991]
[1642061686560,12.7538,151.99,151.92,27.5491]
[1642061686761,2.882,151.99,151.92,27.5491]
[1642061687061,2.632,151.99,151.93,9.5]
[1642061687263,81.83166414,152.01,151.94,2.632]
[1642061687462,81.83166414,152.01,151.94,18.5014]
[1642061687660,81.83166414,152.01,151.94,19.59873576]
[1642061688089,81.83166414,152.01,151.94,18.5014]
[1642061688291,79.9458,152.01,151.94,19.59873576]
[1642061688594,79.9458,152.01,151.94,19.91873576]
[1642061689191,79.9458,152.01,151.94,18.8214]
[1642061689399,79.9458,152.01,151.94,12.8214]
[1642061689692,79.9458,152.01,151.94,14.6502287]
[1642061689892,79.9458,152.01,151.94,20.6502287]
[1642061690295,80.1958,152.01,151.94,20.6502287]
[1642061690493,79.9458,152.01,151.94,20.6502287]
[1642061690693,79.9458,152.01,151.94,18.8214]
[1642061690893,80.1958,152.01,151.94,18.8214]
[1642061691093,79.9458,152.01,151.94,18.8214]
[1642061691296,80.1958,152.01,151.94,18.8214]
[1642061692395,79.9458,152.01,151.94,18.8214]
[1642061692594,35.8217,152.03,151.94,18.8214]
[1642061692794,35.8217,152.03,151.94,42.7225]
[1642061693794,36.0717,152.03,151.95,9.5]
[1642061693993,36.0717,152.03,151.96,9.8685]
[1642061694196,33.1897,152.03,151.96,9.8685]
[1642061694496,23.5707,152.03,151.96,10.1185]
[1642061695497,23.3207,152.03,151.96,16.1185]
[1642061695699,23.3207,152.03,151.98,9.8672]
[1642061696099,23.3207,152.03,151.97,2.7]
[1642061696301,23.3207,152.03,151.97,0.07]
[1642061696598,23.3207,152.03,151.95,8.88]
[1642061696800,25.9507,152.03,151.95,2.88]
[1642061696998,26.2007,152.03,151.95,28.2487]
[1642061697198,25.9507,152.03,151.95,28.2487]
[1642061697402,2.63,152.03,151.95,28.5087]
[1642061697601,0.25,152.03,151.95,28.2487]
[1642061698602,25.4868,152.04,151.95,28.2487]
[1642061699203,35.3551,152.04,151.95,28.2487]
[1642061701109,37.24096414,152.04,151.95,28.2487]
[1642061702807,27.37266414,152.04,151.95,28.5087]
[1642061704009,27.37266414,152.04,151.95,28.2487]
[1642061704407,27.12266414,152.04,151.95,28.2487]
[1642061704615,27.12266414,152.04,151.95,29.60603576]
[1642061704808,27.12266414,152.04,151.95,29.67603576]
[1642061705214,27.37266414,152.04,151.95,29.41603576]
[1642061705410,22.8568,152.04,151.95,29.41603576]
[1642061706408,22.8568,152.04,151.95,28.3187]
[1642061706811,22.6068,152.04,151.95,28.5787]
[1642061707811,22.8568,152.04,151.95,22.0687]
[1642061708012,22.8568,152.04,151.95,2.7]
[1642061708813,2.63,152.03,151.95,2.7]
[1642061709012,12.749,152.03,151.95,2.7]
[1642061709612,22.5746,152.02,151.95,2.7]
[1642061710011,22.8246,152.02,151.95,2.7]
[1642061710214,22.8246,152.02,151.95,12.5691]
[1642061711014,22.8246,152.02,151.95,9.9391]
[1642061712014,32.6942,152.02,151.95,9.9391]
[1642061713514,22.8246,152.02,151.95,9.9391]
[1642061714142,22.5746,152.02,151.95,9.9391]
[1642061714515,22.5746,152.02,151.95,15.9391]
[1642061716020,22.8246,152.02,151.95,15.9391]
[1642061716223,25.4546,152.02,151.95,15.9391]
[1642061716621,25.4546,152.02,151.95,0.07]
[1642061716823,35.3243,152.02,151.95,0.07]
[1642061717323,25.4546,152.02,151.95,0.07]
[1642061717523,22.8246,152.02,151.95,2.7]
[1642061717723,22.8246,152.02,151.95,12.5691]
[1642061720733,22.8246,152.02,151.95,9.9391]
[1642061727765,22.8246,152.02,151.95,12.5691]
[1642061729066,24.71046414,152.02,151.95,12.5691]
[1642061732269,2.13586414,152.02,151.95,12.5691]
[1642061732471,2.13586414,152.02,151.95,18.8291]
[1642061733303,1.88586414,152.02,151.95,18.8291]
[1642061733508,4.51586414,152.03,151.95,18.8191]
[1642061733703,1.88586414,152.03,151.95,18.8191]
[1642061733904,1.88586414,152.03,151.95,28.5791]
[1642061734104,1.88586414,152.03,151.95,29.67373918]
[1642061734505,0.25,152.03,151.95,29.67373918]
[1642061734709,25.15206414,152.04,151.95,29.67373918]
[1642061735004,25.15206414,152.04,151.95,28.5791]
[1642061735708,25.15206414,152.04,151.95,28.3191]
[1642061736807,25.15206414,152.04,151.95,22.3191]
[1642061737410,25.15206414,152.04,151.95,22.0691]
[1642061738708,1.88586414,152.03,151.95,22.0691]
[1642061738910,1.88586414,152.03,151.95,22.3191]
[1642061739108,2.13586414,152.03,151.95,22.3191]
[1642061739310,2.13586414,152.03,151.95,28.3191]
[1642061739509,2.13586414,152.03,151.95,28.5791]
[1642061740610,2.13586414,152.03,151.95,28.3191]
[1642061741014,2.88,152.03,151.95,18.8191]
[1642061741211,12.749,152.03,151.95,18.5691]
[1642061741412,23.768,152.02,151.95,2.7]
[1642061741714,23.768,152.02,151.95,0.07]
[1642061741910,24.018,152.02,151.95,0.07]
[1642061742813,24.018,152.02,151.96,2.63]
[1642061743013,25.90386414,152.02,151.96,2.63]
[1642061743415,25.90386414,152.02,151.95,12.4991]
[1642061743618,45.38036414,152.02,151.94,30.1511]
[1642061743814,42.75036414,152.02,151.94,30.1511]
[1642061744013,40.8645,152.02,151.94,30.1511]
[1642061744213,43.4945,152.02,151.94,32.7811]
[1642061745917,43.4945,152.02,151.94,32.5311]
[1642061746316,45.38036414,152.02,151.94,32.5311]
[1642061746518,42.75036414,152.02,151.94,32.5311]
[1642061746819,35.77336414,152.02,151.94,32.5311]
[1642061747019,35.77336414,152.02,151.94,32.7811]
[1642061747220,35.77336414,152.02,151.94,34.13573918]
[1642061747619,35.77336414,152.02,151.94,33.87573918]
[1642061747819,35.77336414,152.02,151.94,32.7811]
[1642061748419,33.8875,152.02,151.94,32.7811]
[1642061748621,36.5175,152.02,151.94,30.1511]
[1642061748822,36.5175,152.02,151.94,31.24573918]
[1642061749028,26.648,152.02,151.94,41.11553918]
[1642061749923,26.648,152.02,151.94,41.37553918]
[1642061750523,26.648,152.02,151.94,40.0209]
[1642061750728,24.018,152.02,151.94,40.0209]
[1642061751130,33.8876,152.02,151.94,39.7709]
[1642061751757,36.5176,152.02,151.94,39.7709]
[1642061751955,38.40346414,152.02,151.94,39.7709]
[1642061752155,35.77346414,152.02,151.94,39.7709]
[1642061752558,11.75546414,152.02,151.94,39.7709]
[1642061752862,1.88586414,152.02,151.94,41.37553918]
[1642061753055,1.88586414,152.02,151.95,9.5]
[1642061753256,1.88586414,152.02,151.96,9.8683]
[1642061753456,1.88586414,152.02,151.97,2.63]
[1642061753758,22.9115,152.03,151.97,2.63]
[1642061753959,23.1615,152.03,151.97,2.88]
[1642061754557,33.0305,152.03,151.97,2.63]